[Event "*** SCC Grand Prix: Titled Tuesday Blitz"]
[Site "Chess.com"]
[Date "2020.09.08"]
[Round "5"]
[White "AnishOnYoutube"]
[Black "Shubinkirill2003"]
[Result "1-0"]
[WhiteElo "2943"]
[BlackElo "2641"]
[TimeControl "180+1"]
[EndTime "10:57:57 PDT"]
[Termination "AnishOnYoutube won by resignation"]

1. d4 {[%clk 0:03:00.9]} 1... e6 {[%clk 0:02:59.5]} 2. c4 {[%clk 0:02:59.4]}
2... Nf6 {[%clk 0:02:59.2]} 3. Nf3 {[%clk 0:02:59]} 3... Bb4+ {[%clk 0:02:57.2]}
4. Bd2 {[%clk 0:02:53.5]} 4... a5 {[%clk 0:02:56.6]} 5. a3 {[%clk 0:02:52.1]}
5... Bxd2+ {[%clk 0:02:55.9]} 6. Qxd2 {[%clk 0:02:53]} 6... d6 {[%clk
0:02:55.6]} 7. Nc3 {[%clk 0:02:53.4]} 7... Nbd7 {[%clk 0:02:55.5]} 8. e3 {[%clk
0:02:37.9]} 8... O-O {[%clk 0:02:54.7]} 9. Be2 {[%clk 0:02:37.7]} 9... e5 {[%clk
0:02:54.3]} 10. O-O {[%clk 0:02:37.7]} 10... Re8 {[%clk 0:02:48.5]} 11. Rfd1
{[%clk 0:02:29.8]} 11... exd4 {[%clk 0:02:44.6]} 12. Nxd4 {[%clk 0:02:27.9]}
12... a4 {[%clk 0:02:41.6]} 13. Qc2 {[%clk 0:02:22.6]} 13... Nc5 {[%clk
0:02:40.8]} 14. Bf3 {[%clk 0:02:22.2]} 14... Bg4 {[%clk 0:02:19.5]} 15. Qe2
{[%clk 0:02:13.4]} 15... Bxf3 {[%clk 0:02:07.4]} 16. Qxf3 {[%clk 0:02:14.3]}
16... Nfe4 {[%clk 0:02:02.5]} 17. Rac1 {[%clk 0:02:03.1]} 17... Nxc3 {[%clk
0:01:54.3]} 18. Rxc3 {[%clk 0:02:04]} 18... Qd7 {[%clk 0:01:52.3]} 19. h3 {[%clk
0:02:02.8]} 19... Re5 {[%clk 0:01:47.6]} 20. Rc2 {[%clk 0:02:02.3]} 20... Rae8
{[%clk 0:01:44.7]} 21. Nb5 {[%clk 0:02:01.7]} 21... Rf5 {[%clk 0:01:27.9]} 22.
Qe2 {[%clk 0:01:55.2]} 22... Ne4 {[%clk 0:01:22.1]} 23. Rf1 {[%clk 0:01:55.1]}
23... Rg5 {[%clk 0:01:14.1]} 24. Kh2 {[%clk 0:01:48.8]} 24... f5 {[%clk
0:01:11.6]} 25. Qf3 {[%clk 0:01:45]} 25... Rg6 {[%clk 0:01:06.9]} 26. Rd1 {[%clk
0:01:41.5]} 26... Rf6 {[%clk 0:01:02.7]} 27. Nd4 {[%clk 0:01:37.2]} 27... g5
{[%clk 0:00:59.1]} 28. Qh5 {[%clk 0:01:26.8]} 28... Rg6 {[%clk 0:00:58.6]} 29.
Qf3 {[%clk 0:01:18.1]} 29... Rf8 {[%clk 0:00:57]} 30. Ne2 {[%clk 0:01:08.2]}
30... b6 {[%clk 0:00:49.7]} 31. Nc3 {[%clk 0:01:03.2]} 31... Nxc3 {[%clk
0:00:41]} 32. Rxc3 {[%clk 0:01:03.5]} 32... f4 {[%clk 0:00:41.2]} 33. e4 {[%clk
0:01:01.2]} 33... Qe6 {[%clk 0:00:37.5]} 34. Rd4 {[%clk 0:00:53]} 34... Re8
{[%clk 0:00:31.5]} 35. Rcd3 {[%clk 0:00:52.3]} 35... Kg7 {[%clk 0:00:25.9]} 36.
Qh5 {[%clk 0:00:45.6]} 36... Re7 {[%clk 0:00:23.7]} 37. f3 {[%clk 0:00:42.8]}
37... h6 {[%clk 0:00:19.3]} 38. Rd5 {[%clk 0:00:40.9]} 38... Qf6 {[%clk
0:00:17.9]} 39. Rd2 {[%clk 0:00:37.3]} 39... Qe6 {[%clk 0:00:17.2]} 40. Rc2
{[%clk 0:00:30.8]} 40... Qf6 {[%clk 0:00:15.7]} 41. Rf5 {[%clk 0:00:31.2]} 41...
Qe6 {[%clk 0:00:15.6]} 42. h4 {[%clk 0:00:31.5]} 42... Re8 {[%clk 0:00:09.9]}
43. Kg1 {[%clk 0:00:29.6]} 43... Rh8 {[%clk 0:00:08.9]} 44. Qg4 {[%clk
0:00:26.2]} 44... h5 {[%clk 0:00:08.8]} 45. Qh3 {[%clk 0:00:26.5]} 45... g4
{[%clk 0:00:09.2]} 46. fxg4 {[%clk 0:00:27]} 46... hxg4 {[%clk 0:00:09.3]} 47.
Qc3+ {[%clk 0:00:27.7]} 47... Rf6 {[%clk 0:00:07.5]} 48. Rxf4 {[%clk 0:00:25.2]}
48... Rxh4 {[%clk 0:00:07.5]} 49. Rcf2 {[%clk 0:00:24.7]} 49... Rh6 {[%clk
0:00:07.7]} 50. Qg3 {[%clk 0:00:19.8]} 50... Rhg6 {[%clk 0:00:07.5]} 51. Rxf6
{[%clk 0:00:15.2]} 51... Rxf6 {[%clk 0:00:07.9]} 52. Rxf6 {[%clk 0:00:15.2]}
52... Kxf6 {[%clk 0:00:08.8]} 53. Qf4+ {[%clk 0:00:15.7]} 53... Kg6 {[%clk
0:00:08.8]} 54. Kf2 {[%clk 0:00:15.5]} 54... Qe5 {[%clk 0:00:09]} 55. Qxg4+
{[%clk 0:00:10.9]} 55... Kf6 {[%clk 0:00:06.7]} 56. Qf5+ {[%clk 0:00:08.4]}
56... Qxf5+ {[%clk 0:00:06.5]} 57. exf5 {[%clk 0:00:09.3]} 57... Kxf5 {[%clk
0:00:07]} 58. Kf3 {[%clk 0:00:10]} 58... c6 {[%clk 0:00:06.8]} 59. g4+ {[%clk
0:00:09.6]} 59... Kg5 {[%clk 0:00:06.8]} 60. Kg3 {[%clk 0:00:10.3]} 60... d5
{[%clk 0:00:05.1]} 61. cxd5 {[%clk 0:00:10.3]} 61... cxd5 {[%clk 0:00:05.7]} 62.
Kf3 {[%clk 0:00:10.9]} 62... d4 {[%clk 0:00:04]} 63. Ke4 {[%clk 0:00:09.5]}
63... Kxg4 {[%clk 0:00:04.9]} 64. Kxd4 {[%clk 0:00:10.1]} 64... Kf4 {[%clk
0:00:05.2]} 65. Kc4 {[%clk 0:00:10.2]} 65... Ke4 {[%clk 0:00:05.6]} 66. Kb5
{[%clk 0:00:10.5]} 66... Kd3 {[%clk 0:00:04.4]} 67. Kxb6 {[%clk 0:00:06.4]}
67... Kc4 {[%clk 0:00:04.5]} 68. Ka5 {[%clk 0:00:06.6]} 68... Kb3 {[%clk
0:00:04.8]} 69. Kb5 {[%clk 0:00:07.2]} 69... Kxb2 {[%clk 0:00:05.3]} 70. Kxa4
{[%clk 0:00:08.1]} 70... Kc3 {[%clk 0:00:05.8]} 71. Kb5 {[%clk 0:00:08.4]} 1-0

[Event "*** SCC Grand Prix: Titled Tuesday Blitz"]
[Site "Chess.com"]
[Date "2020.09.08"]
[Round "5"]
[White "Smile2005"]
[Black "arminmusovic"]
[Result "0-1"]
[WhiteElo "2310"]
[BlackElo "2574"]
[TimeControl "180+1"]
[EndTime "10:57:58 PDT"]
[Termination "arminmusovic won by resignation"]

1. Nf3 {[%clk 0:03:00.8]} 1... a6 {[%clk 0:02:59.7]} 2. g3 {[%clk 0:03:01.7]}
2... e6 {[%clk 0:03:00]} 3. Bg2 {[%clk 0:03:02.6]} 3... d5 {[%clk 0:03:00.7]} 4.
O-O {[%clk 0:03:03]} 4... Nf6 {[%clk 0:03:01.6]} 5. d3 {[%clk 0:03:03.9]} 5...
c6 {[%clk 0:03:02.3]} 6. Nbd2 {[%clk 0:03:04.8]} 6... Be7 {[%clk 0:03:01]} 7. e4
{[%clk 0:03:05.7]} 7... O-O {[%clk 0:03:01.5]} 8. e5 {[%clk 0:03:06.1]} 8...
Nfd7 {[%clk 0:03:01.5]} 9. Re1 {[%clk 0:03:07]} 9... c5 {[%clk 0:03:01.3]} 10.
Nf1 {[%clk 0:03:04.3]} 10... Nc6 {[%clk 0:03:01.6]} 11. h4 {[%clk 0:03:04]}
11... Re8 {[%clk 0:03:00.9]} 12. Bf4 {[%clk 0:03:03.3]} 12... Nf8 {[%clk
0:03:01]} 13. h5 {[%clk 0:03:03.2]} 13... b5 {[%clk 0:03:01.2]} 14. N1h2 {[%clk
0:03:03]} 14... Bb7 {[%clk 0:02:55.8]} 15. Ng4 {[%clk 0:03:02.7]} 15... d4
{[%clk 0:02:49.4]} 16. h6 {[%clk 0:03:01.1]} 16... g6 {[%clk 0:02:40.2]} 17. Qd2
{[%clk 0:03:00.7]} 17... Nb4 {[%clk 0:02:32.6]} 18. a3 {[%clk 0:02:59.7]} 18...
Nd5 {[%clk 0:02:32.8]} 19. Bg5 {[%clk 0:02:59.9]} 19... Rb8 {[%clk 0:02:28.4]}
20. Bxe7 {[%clk 0:02:59.7]} 20... Qxe7 {[%clk 0:02:28.9]} 21. Ng5 {[%clk
0:02:58.5]} 21... Kh8 {[%clk 0:02:08.1]} 22. Bxd5 {[%clk 0:02:56]} 22... Bxd5
{[%clk 0:02:05.7]} 23. Nf6 {[%clk 0:02:56.2]} 23... Rec8 {[%clk 0:01:58.8]} 24.
Qf4 {[%clk 0:02:55.6]} 24... Rc7 {[%clk 0:01:56.3]} 25. Nxd5 {[%clk 0:02:27.2]}
25... exd5 {[%clk 0:01:55.6]} 26. e6 {[%clk 0:02:27.1]} 26... f6 {[%clk
0:01:24.5]} 27. Nf3 {[%clk 0:02:00.3]} 27... Rb6 {[%clk 0:01:12.3]} 28. a4
{[%clk 0:01:45.2]} 28... b4 {[%clk 0:01:10.1]} 29. g4 {[%clk 0:01:24.9]} 29...
Nxe6 {[%clk 0:01:03]} 30. Qg3 {[%clk 0:01:24.4]} 30... g5 {[%clk 0:01:01.4]} 31.
Re2 {[%clk 0:01:22.3]} 31... Qf7 {[%clk 0:00:58]} 32. Rae1 {[%clk 0:01:22.4]}
32... Nf8 {[%clk 0:00:58.6]} 33. Re8 {[%clk 0:01:21.5]} 33... Rbb7 {[%clk
0:00:53.9]} 34. Qd6 {[%clk 0:01:20]} 34... Kg8 {[%clk 0:00:52.9]} 35. Qd8 {[%clk
0:01:16.4]} 35... Rd7 {[%clk 0:00:45.9]} 36. Qc8 {[%clk 0:01:11.9]} 36... Re7
{[%clk 0:00:37.9]} 37. R8xe7 {[%clk 0:00:43.3]} 37... Rxe7 {[%clk 0:00:38.8]}
38. Qxc5 {[%clk 0:00:43.2]} 38... Rxe1+ {[%clk 0:00:38.8]} 39. Nxe1 {[%clk
0:00:43.9]} 39... Qe6 {[%clk 0:00:36.2]} 40. Kf1 {[%clk 0:00:42.8]} 40... Kf7
{[%clk 0:00:34]} 41. Nf3 {[%clk 0:00:39.1]} 41... Qxg4 {[%clk 0:00:29.3]} 42.
Qxd5+ {[%clk 0:00:39]} 42... Ne6 {[%clk 0:00:26.7]} 43. Qe4 {[%clk 0:00:13.6]}
43... Qh3+ {[%clk 0:00:25.4]} 44. Ke2 {[%clk 0:00:13.3]} 44... Qxh6 {[%clk
0:00:25]} 45. Nxd4 {[%clk 0:00:12.2]} 45... Qh5+ {[%clk 0:00:22.6]} 46. Kd2
{[%clk 0:00:11.4]} 46... Qh3 {[%clk 0:00:16.1]} 47. Nxe6 {[%clk 0:00:10.3]}
47... Qxe6 {[%clk 0:00:17]} 48. Qxh7+ {[%clk 0:00:10.3]} 48... Ke8 {[%clk
0:00:16.4]} 49. Qh8+ {[%clk 0:00:10.2]} 49... Kd7 {[%clk 0:00:15.5]} 50. Qg7+
{[%clk 0:00:09.6]} 50... Kd6 {[%clk 0:00:13.7]} 51. Qa7 {[%clk 0:00:09.8]} 51...
Ke5 {[%clk 0:00:13.4]} 52. Qe3+ {[%clk 0:00:09.6]} 52... Kf5 {[%clk 0:00:13.8]}
53. Qh3+ {[%clk 0:00:09]} 53... g4 {[%clk 0:00:12.2]} 54. Qh5+ {[%clk
0:00:09.1]} 54... Kf4 {[%clk 0:00:12.6]} 55. Qh6+ {[%clk 0:00:09]} 55... Kf3
{[%clk 0:00:11.8]} 56. Qh1+ {[%clk 0:00:04.2]} 56... Kxf2 {[%clk 0:00:11.2]} 57.
Qh2+ {[%clk 0:00:04.6]} 57... Kf3 {[%clk 0:00:11.6]} 58. Qh1+ {[%clk 0:00:04.6]}
58... Kf4 {[%clk 0:00:11.2]} 59. Qf1+ {[%clk 0:00:04.5]} 59... Kg5 {[%clk
0:00:11.4]} 60. Qg2 {[%clk 0:00:03.5]} 60... f5 {[%clk 0:00:11.1]} 61. c4 {[%clk
0:00:03.1]} 61... bxc3+ {[%clk 0:00:10.6]} 62. bxc3 {[%clk 0:00:04]} 62... Qa2+
{[%clk 0:00:10.3]} 0-1

[Event "*** SCC Grand Prix: Titled Tuesday Blitz"]
[Site "Chess.com"]
[Date "2020.09.08"]
[Round "5"]
[White "Fandorine"]
[Black "Alexsur1981"]
[Result "1-0"]
[WhiteElo "2914"]
[BlackElo "2701"]
[TimeControl "180+1"]
[EndTime "10:58:13 PDT"]
[Termination "Fandorine won by resignation"]

1. e4 {[%clk 0:03:00.9]} 1... c5 {[%clk 0:02:59.8]} 2. b3 {[%clk 0:02:58.8]}
2... b6 {[%clk 0:02:58.2]} 3. Bb2 {[%clk 0:02:58.6]} 3... Bb7 {[%clk 0:02:58.9]}
4. Qe2 {[%clk 0:02:59.2]} 4... Nc6 {[%clk 0:02:59.1]} 5. Nf3 {[%clk 0:02:57.8]}
5... Nf6 {[%clk 0:02:59.1]} 6. Nc3 {[%clk 0:02:55.7]} 6... Nd4 {[%clk
0:02:51.4]} 7. Qd3 {[%clk 0:02:52.5]} 7... Nxf3+ {[%clk 0:02:49]} 8. Qxf3 {[%clk
0:02:53.4]} 8... e6 {[%clk 0:02:43]} 9. O-O-O {[%clk 0:02:51]} 9... a6 {[%clk
0:02:39.2]} 10. Qe3 {[%clk 0:02:36.7]} 10... Qc7 {[%clk 0:02:37.2]} 11. g3
{[%clk 0:02:27.3]} 11... Be7 {[%clk 0:02:32]} 12. Bg2 {[%clk 0:02:25]} 12... O-O
{[%clk 0:02:26.2]} 13. f4 {[%clk 0:02:18.8]} 13... d5 {[%clk 0:02:16]} 14. exd5
{[%clk 0:02:09.2]} 14... exd5 {[%clk 0:02:16.9]} 15. Rhe1 {[%clk 0:01:26]} 15...
Rfe8 {[%clk 0:02:12.1]} 16. Qd3 {[%clk 0:01:03.8]} 16... d4 {[%clk 0:01:53.4]}
17. Ne4 {[%clk 0:00:59.9]} 17... Nd5 {[%clk 0:01:40.4]} 18. a3 {[%clk 0:00:57]}
18... b5 {[%clk 0:01:32.3]} 19. Kb1 {[%clk 0:00:54.8]} 19... Rad8 {[%clk
0:01:25.8]} 20. Ng5 {[%clk 0:00:44.7]} 20... g6 {[%clk 0:01:09.2]} 21. Bf1
{[%clk 0:00:27.9]} 21... Bf6 {[%clk 0:01:04.1]} 22. h4 {[%clk 0:00:15.5]} 22...
Nb6 {[%clk 0:00:53.9]} 23. Rxe8+ {[%clk 0:00:06.1]} 23... Rxe8 {[%clk
0:00:54.8]} 24. Bh3 {[%clk 0:00:04.8]} 24... c4 {[%clk 0:00:51.5]} 25. Qf1
{[%clk 0:00:05.4]} 25... Qe7 {[%clk 0:00:39.9]} 26. Bg2 {[%clk 0:00:03.8]} 26...
Bxg2 {[%clk 0:00:36.6]} 27. Qxg2 {[%clk 0:00:04.7]} 27... d3 {[%clk 0:00:35.4]}
28. cxd3 {[%clk 0:00:03.8]} 28... Bxb2 {[%clk 0:00:34.1]} 29. Kxb2 {[%clk
0:00:04.7]} 29... cxb3 {[%clk 0:00:33.4]} 30. Qc6 {[%clk 0:00:03.8]} 30... Na4+
{[%clk 0:00:27.9]} 31. Kxb3 {[%clk 0:00:02.5]} 31... Nc5+ {[%clk 0:00:20.5]} 32.
Ka2 {[%clk 0:00:02]} 32... Nxd3 {[%clk 0:00:18.8]} 33. Qd5 {[%clk 0:00:02.1]}
33... Rd8 {[%clk 0:00:14.1]} 34. Qb3 {[%clk 0:00:02]} 34... h6 {[%clk
0:00:09.8]} 35. Nf3 {[%clk 0:00:01.3]} 35... Nc5 {[%clk 0:00:10]} 36. Qc2 {[%clk
0:00:01.7]} 36... Qe6+ {[%clk 0:00:09.7]} 37. Kb1 {[%clk 0:00:01.7]} 37... Nd3
{[%clk 0:00:08.7]} 38. Ne5 {[%clk 0:00:01.8]} 38... Nxe5 {[%clk 0:00:08.3]} 39.
Re1 {[%clk 0:00:02.4]} 39... Qd6 {[%clk 0:00:05.7]} 40. fxe5 {[%clk 0:00:02.9]}
40... Qe6 {[%clk 0:00:06]} 41. Qc3 {[%clk 0:00:02.6]} 41... h5 {[%clk
0:00:03.5]} 42. Kb2 {[%clk 0:00:02.7]} 42... a5 {[%clk 0:00:03.3]} 43. Re3
{[%clk 0:00:03]} 43... b4 {[%clk 0:00:03.1]} 44. axb4 {[%clk 0:00:03.9]} 44...
axb4 {[%clk 0:00:04]} 45. Qxb4 {[%clk 0:00:04.2]} 45... Qd5 {[%clk 0:00:04]} 46.
Qc3 {[%clk 0:00:02.7]} 46... Rb8+ {[%clk 0:00:03.4]} 47. Kc2 {[%clk 0:00:03.2]}
47... Qd7 {[%clk 0:00:03.7]} 48. e6 {[%clk 0:00:03.6]} 48... fxe6 {[%clk
0:00:04.6]} 49. Qf6 {[%clk 0:00:03.1]} 49... Rc8+ {[%clk 0:00:04.8]} 50. Kd1
{[%clk 0:00:03.7]} 50... Qf7 {[%clk 0:00:05.2]} 51. Qxe6 {[%clk 0:00:03.8]}
51... Qxe6 {[%clk 0:00:05.8]} 52. Rxe6 {[%clk 0:00:04.7]} 52... Kf7 {[%clk
0:00:06.7]} 53. Re5 {[%clk 0:00:05.3]} 53... Rc4 {[%clk 0:00:06.6]} 54. Rg5
{[%clk 0:00:06.2]} 54... Rc6 {[%clk 0:00:05.9]} 55. Ke2 {[%clk 0:00:06.5]} 55...
Ke7 {[%clk 0:00:06.2]} 56. Ke3 {[%clk 0:00:06.9]} 56... Rf6 {[%clk 0:00:07.1]}
57. d4 {[%clk 0:00:06.7]} 57... Kd6 {[%clk 0:00:08]} 58. Ke4 {[%clk 0:00:06.8]}
58... Re6+ {[%clk 0:00:08.2]} 59. Kd3 {[%clk 0:00:07.4]} 59... Rf6 {[%clk
0:00:09.1]} 60. Kc4 {[%clk 0:00:08]} 60... Re6 {[%clk 0:00:10]} 61. Ra5 {[%clk
0:00:08.1]} 61... Kc7 {[%clk 0:00:10.1]} 62. Ra7+ {[%clk 0:00:07.9]} 62... Kb6
{[%clk 0:00:09.7]} 63. Ra3 {[%clk 0:00:08.3]} 63... Re1 {[%clk 0:00:07.7]} 64.
Kd5 {[%clk 0:00:08.5]} 64... Kc7 {[%clk 0:00:07.3]} 65. Rf3 {[%clk 0:00:08.2]}
65... Rg1 {[%clk 0:00:05.5]} 66. Ke6 {[%clk 0:00:08]} 66... Re1+ {[%clk
0:00:03.9]} 67. Kf6 {[%clk 0:00:08]} 67... Re4 {[%clk 0:00:04.8]} 68. Kxg6
{[%clk 0:00:07.4]} 68... Rxd4 {[%clk 0:00:05.7]} 69. Kxh5 {[%clk 0:00:07.7]}
69... Kd7 {[%clk 0:00:06.6]} 70. g4 {[%clk 0:00:07.9]} 70... Ke7 {[%clk
0:00:07.5]} 71. g5 {[%clk 0:00:08.3]} 71... Rd1 {[%clk 0:00:07.2]} 72. Kg6
{[%clk 0:00:08.3]} 72... Rd3 {[%clk 0:00:08.1]} 73. Rxd3 {[%clk 0:00:07.9]} 1-0

[Event "*** SCC Grand Prix: Titled Tuesday Blitz"]
[Site "Chess.com"]
[Date "2020.09.08"]
[Round "5"]
[White "Sethu0025"]
[Black "ArjunErigaisi2003"]
[Result "0-1"]
[WhiteElo "2712"]
[BlackElo "3045"]
[TimeControl "180+1"]
[EndTime "10:58:15 PDT"]
[Termination "ArjunErigaisi2003 won by checkmate"]

1. c4 {[%clk 0:03:00.9]} 1... Nf6 {[%clk 0:02:58.2]} 2. Nc3 {[%clk 0:02:58.8]}
2... e6 {[%clk 0:02:57.8]} 3. e4 {[%clk 0:02:58.5]} 3... d5 {[%clk 0:02:57]} 4.
e5 {[%clk 0:02:54]} 4... d4 {[%clk 0:02:55]} 5. exf6 {[%clk 0:02:53.6]} 5...
dxc3 {[%clk 0:02:54.9]} 6. bxc3 {[%clk 0:02:54]} 6... Qxf6 {[%clk 0:02:54.9]} 7.
d4 {[%clk 0:02:53.7]} 7... e5 {[%clk 0:02:43.2]} 8. Nf3 {[%clk 0:02:51.5]} 8...
Bg4 {[%clk 0:02:37.8]} 9. Be2 {[%clk 0:02:35.3]} 9... exd4 {[%clk 0:02:31.7]}
10. cxd4 {[%clk 0:02:31.6]} 10... Bb4+ {[%clk 0:02:26.9]} 11. Bd2 {[%clk
0:02:31.5]} 11... Bxd2+ {[%clk 0:02:25.1]} 12. Qxd2 {[%clk 0:02:32.4]} 12... O-O
{[%clk 0:02:25.5]} 13. O-O {[%clk 0:02:31.2]} 13... Nc6 {[%clk 0:02:25.3]} 14.
Rad1 {[%clk 0:02:00.3]} 14... Rad8 {[%clk 0:02:24.7]} 15. d5 {[%clk 0:01:59.5]}
15... Rfe8 {[%clk 0:02:23.5]} 16. Rfe1 {[%clk 0:01:54.5]} 16... h6 {[%clk
0:02:16.5]} 17. h3 {[%clk 0:01:53.7]} 17... Bxf3 {[%clk 0:02:12.9]} 18. Bxf3
{[%clk 0:01:54.6]} 18... Ne5 {[%clk 0:02:13.5]} 19. Be2 {[%clk 0:01:55]} 19...
Nd7 {[%clk 0:02:11.1]} 20. Bf1 {[%clk 0:01:53.1]} 20... b6 {[%clk 0:02:06.7]}
21. Re3 {[%clk 0:01:52.3]} 21... Rxe3 {[%clk 0:02:01.4]} 22. Qxe3 {[%clk
0:01:53.2]} 22... Nc5 {[%clk 0:02:01.8]} 23. Re1 {[%clk 0:01:52.4]} 23... Kf8
{[%clk 0:02:02]} 24. Qg3 {[%clk 0:01:27.9]} 24... Qd6 {[%clk 0:01:58]} 25. Qe3
{[%clk 0:01:28]} 25... a5 {[%clk 0:01:53.4]} 26. Qd4 {[%clk 0:01:20.1]} 26... a4
{[%clk 0:01:46.1]} 27. Re3 {[%clk 0:01:20.1]} 27... Qf6 {[%clk 0:01:43]} 28.
Qxf6 {[%clk 0:01:10.8]} 28... gxf6 {[%clk 0:01:43.9]} 29. Rf3 {[%clk 0:01:11.3]}
29... Kg7 {[%clk 0:01:37]} 30. Rg3+ {[%clk 0:01:11]} 30... Kf8 {[%clk 0:01:37]}
31. Rf3 {[%clk 0:01:11.2]} 31... Ke7 {[%clk 0:01:23.2]} 32. Re3+ {[%clk
0:01:09.4]} 32... Kd6 {[%clk 0:01:23.8]} 33. g4 {[%clk 0:01:04.7]} 33... Rg8
{[%clk 0:01:18.6]} 34. Kh2 {[%clk 0:01:02.4]} 34... Nd7 {[%clk 0:01:14.1]} 35.
Ra3 {[%clk 0:00:52]} 35... Ra8 {[%clk 0:01:11.4]} 36. Kg3 {[%clk 0:00:49.6]}
36... Kc5 {[%clk 0:01:05.9]} 37. Re3 {[%clk 0:00:41.7]} 37... Ne5 {[%clk
0:00:59.5]} 38. f4 {[%clk 0:00:41.5]} 38... Kd4 {[%clk 0:00:50.5]} 39. Re1
{[%clk 0:00:29.6]} 39... Nxc4 {[%clk 0:00:50.6]} 40. Bxc4 {[%clk 0:00:22.1]}
40... Kxc4 {[%clk 0:00:51.5]} 41. Rc1+ {[%clk 0:00:22.8]} 41... Kxd5 {[%clk
0:00:48.8]} 42. Rxc7 {[%clk 0:00:23.7]} 42... Rf8 {[%clk 0:00:38.8]} 43. Kh4
{[%clk 0:00:18.7]} 43... b5 {[%clk 0:00:39.4]} 44. Kh5 {[%clk 0:00:18.4]} 44...
b4 {[%clk 0:00:40]} 45. Kxh6 {[%clk 0:00:18]} 45... Rh8+ {[%clk 0:00:38.9]} 46.
Kg7 {[%clk 0:00:18.3]} 46... Rxh3 {[%clk 0:00:39.8]} 47. Kxf6 {[%clk 0:00:18.1]}
47... Rh2 {[%clk 0:00:38.1]} 48. Rb7 {[%clk 0:00:17.7]} 48... Kc5 {[%clk
0:00:35.8]} 49. f5 {[%clk 0:00:15.5]} 49... Rxa2 {[%clk 0:00:34.4]} 50. g5
{[%clk 0:00:14.4]} 50... a3 {[%clk 0:00:23.4]} 51. Kxf7 {[%clk 0:00:13.6]} 51...
Rf2 {[%clk 0:00:22.1]} 52. f6 {[%clk 0:00:13.6]} 52... a2 {[%clk 0:00:22.4]} 53.
Ra7 {[%clk 0:00:13.6]} 53... b3 {[%clk 0:00:22.8]} 54. g6 {[%clk 0:00:13.4]}
54... b2 {[%clk 0:00:12.5]} 55. Rxa2 {[%clk 0:00:13.2]} 55... Rxf6+ {[%clk
0:00:13]} 56. Kxf6 {[%clk 0:00:12.3]} 56... b1=Q {[%clk 0:00:13.9]} 57. Rf2
{[%clk 0:00:10.2]} 57... Qa1+ {[%clk 0:00:10.6]} 58. Kf7 {[%clk 0:00:07.4]}
58... Qa7+ {[%clk 0:00:10.9]} 59. Kf6 {[%clk 0:00:07.4]} 59... Qb6+ {[%clk
0:00:08.3]} 60. Kg5 {[%clk 0:00:06.6]} 60... Qd8+ {[%clk 0:00:08.2]} 61. Kg4
{[%clk 0:00:02.3]} 61... Qd7+ {[%clk 0:00:05.3]} 62. Kg5 {[%clk 0:00:02]} 62...
Qe7+ {[%clk 0:00:05.1]} 63. Rf6 {[%clk 0:00:02]} 63... Kd5 {[%clk 0:00:04.1]}
64. g7 {[%clk 0:00:02.2]} 64... Qxg7+ {[%clk 0:00:04]} 65. Rg6 {[%clk
0:00:02.7]} 65... Qe7+ {[%clk 0:00:04.4]} 66. Kh5 {[%clk 0:00:02.2]} 66... Ke4
{[%clk 0:00:04.1]} 67. Kh6 {[%clk 0:00:02.2]} 67... Kf5 {[%clk 0:00:04.2]} 68.
Rg7 {[%clk 0:00:02.7]} 68... Qh4# {[%clk 0:00:04.3]} 0-1